[Event "Titled Tuesday Blitz September 27 Early 2022"]
[White "Arabidze, Meri"]
[Black "Svane, Rasmus"]
[WhiteFideId "13604040"]
[BlackFideId "4657101"]
[WhiteElo "2335"]
[BlackElo "2674"]
[Result "0-1"]
[Round "05"]
[TimeControl "180+1"]
[Date "2022.09.27"]
[WhiteClock "0:00:06"]
[BlackClock "0:00:12"]

1. Nf3 {[%clk 0:02:46]}  d5 {[%clk 0:02:58]} 2. g3 {[%clk 0:02:46]}  g6 {[%clk 0:02:57]} 3. Bg2 {[%clk 0:02:46]}  Bg7 {[%clk 0:02:57]} 4. O-O {[%clk 0:02:47]}  e5 {[%clk 0:02:55]} 5. d3 {[%clk 0:02:46]}  Nc6 {[%clk 0:02:54]} 6. e4 {[%clk 0:02:46]}  dxe4 {[%clk 0:02:55]} 7. dxe4 {[%clk 0:02:46]}  Qxd1 {[%clk 0:02:56]} 8. Rxd1 {[%clk 0:02:45]}  Bg4 {[%clk 0:02:56]} 9. c3 {[%clk 0:02:44]}  f6 {[%clk 0:02:47]} 10. h3 {[%clk 0:02:43]}  Be6 {[%clk 0:02:46]} 11. Be3 {[%clk 0:02:41]}  Bh6 {[%clk 0:02:46]} 12. Bxh6 {[%clk 0:02:39]}  Nxh6 {[%clk 0:02:47]} 13. Na3 {[%clk 0:02:36]}  Ke7 {[%clk 0:02:43]} 14. Bf1 {[%clk 0:02:35]}  Nf7 {[%clk 0:02:37]} 15. Kg2 {[%clk 0:02:35]}  Nd6 {[%clk 0:02:36]} 16. Nb5 {[%clk 0:02:24]}  Nxb5 {[%clk 0:02:26]} 17. Bxb5 {[%clk 0:02:25]}  Na5 {[%clk 0:02:26]} 18. b3 {[%clk 0:02:20]}  Rhd8 {[%clk 0:02:24]} 19. g4 {[%clk 0:02:09]}  a6 {[%clk 0:02:19]} 20. Be2 {[%clk 0:02:08]}  g5 {[%clk 0:01:43]} 21. Ne1 {[%clk 0:01:56]}  b6 {[%clk 0:01:20]} 22. Nc2 {[%clk 0:01:54]}  Nb7 {[%clk 0:01:19]} 23. Ne3 {[%clk 0:01:44]}  Nc5 {[%clk 0:01:12]} 24. f3 {[%clk 0:01:43]}  a5 {[%clk 0:01:12]} 25. Bb5 {[%clk 0:01:22]}  Rxd1 {[%clk 0:00:58]} 26. Rxd1 {[%clk 0:01:23]}  Rd8 {[%clk 0:00:59]} 27. Rxd8 {[%clk 0:01:18]}  Kxd8 {[%clk 0:01:00]} 28. Kf2 {[%clk 0:01:13]}  Ke7 {[%clk 0:00:52]} 29. Ke2 {[%clk 0:01:09]}  Kd6 {[%clk 0:00:50]} 30. Bc4 {[%clk 0:01:08]}  Bc8 {[%clk 0:00:50]} 31. Bg8 {[%clk 0:01:05]}  h6 {[%clk 0:00:49]} 32. Nd5 {[%clk 0:01:02]}  Nd7 {[%clk 0:00:47]} 33. Bh7 {[%clk 0:01:00]}  Bb7 {[%clk 0:00:44]} 34. Ne3 {[%clk 0:00:56]}  Nf8 {[%clk 0:00:43]} 35. Nf5+ {[%clk 0:00:45]}  Kd7 {[%clk 0:00:40]} 36. Bg8 {[%clk 0:00:46]}  Ng6 {[%clk 0:00:37]} 37. Nxh6 {[%clk 0:00:42]}  Nf4+ {[%clk 0:00:37]} 38. Ke3 {[%clk 0:00:43]}  Nxh3 {[%clk 0:00:38]} 39. Bc4 {[%clk 0:00:33]}  c6 {[%clk 0:00:22]} 40. a4 {[%clk 0:00:31]}  Kd6 {[%clk 0:00:18]} 41. Ng8 {[%clk 0:00:30]}  Bc8 {[%clk 0:00:18]} 42. Nxf6 {[%clk 0:00:29]}  Kc5 {[%clk 0:00:16]} 43. Bf7 {[%clk 0:00:25]}  b5 {[%clk 0:00:16]} 44. Be8 {[%clk 0:00:21]}  b4 {[%clk 0:00:16]} 45. c4 {[%clk 0:00:19]}  Nf4 {[%clk 0:00:15]} 46. Bd7 {[%clk 0:00:19]}  Bxd7 {[%clk 0:00:11]} 47. Nxd7+ {[%clk 0:00:20]}  Kd6 {[%clk 0:00:12]} 48. Nf8 {[%clk 0:00:19]}  Ke7 {[%clk 0:00:12]} 49. Nh7 {[%clk 0:00:17]}  Ne6 {[%clk 0:00:12]} 50. Nxg5 {[%clk 0:00:07]}  Nxg5 {[%clk 0:00:12]} 51. f4 {[%clk 0:00:08]}  exf4+ {[%clk 0:00:08]} 52. Kxf4 {[%clk 0:00:09]}  Ne6+ {[%clk 0:00:09]} 53. Ke5 {[%clk 0:00:09]}  Nc5 {[%clk 0:00:10]} 54. g5 {[%clk 0:00:08]}  Nxb3 {[%clk 0:00:10]} 55. g6 {[%clk 0:00:09]}  Nc5 {[%clk 0:00:11]} 56. g7 {[%clk 0:00:05]}  Kf7 {[%clk 0:00:11]} 57. Kd6 {[%clk 0:00:06]}  Nxe4+ {[%clk 0:00:12]} 58. Kxc6 {[%clk 0:00:06]}  b3 {[%clk 0:00:12]} 0-1


[Site "https://www.chess.com"]

[Event "Titled Tuesday Blitz September 27 Early 2022"]
[White "Ardila, Oscar Humberto"]
[Black "Shandrygin, Nikita"]
[WhiteFideId "4404742"]
[BlackFideId "24198668"]
[WhiteElo "1898"]
[BlackElo "2323"]
[Result "0-1"]
[Round "05"]
[TimeControl "180+1"]
[Date "2022.09.27"]
[WhiteClock "0:01:04"]
[BlackClock "0:00:35"]

1. d4 {[%clk 0:03:00]}  Nf6 {[%clk 0:02:58]} 2. c4 {[%clk 0:02:59]}  e6 {[%clk 0:02:59]} 3. Nc3 {[%clk 0:02:58]}  Bb4 {[%clk 0:02:59]} 4. Bd2 {[%clk 0:02:58]}  O-O {[%clk 0:02:46]} 5. Nf3 {[%clk 0:02:57]}  d5 {[%clk 0:02:40]} 6. e3 {[%clk 0:02:57]}  c5 {[%clk 0:02:24]} 7. cxd5 {[%clk 0:02:54]}  exd5 {[%clk 0:02:22]} 8. Be2 {[%clk 0:02:54]}  Nc6 {[%clk 0:02:19]} 9. O-O {[%clk 0:02:54]}  Bf5 {[%clk 0:02:01]} 10. Rc1 {[%clk 0:02:53]}  Bxc3 {[%clk 0:01:50]} 11. Bxc3 {[%clk 0:02:53]}  c4 {[%clk 0:01:51]} 12. Ne5 {[%clk 0:02:49]}  Qd6 {[%clk 0:01:24]} 13. Bf3 {[%clk 0:02:47]}  b5 {[%clk 0:01:14]} 14. Nxc6 {[%clk 0:02:35]}  Qxc6 {[%clk 0:01:14]} 15. Bb4 {[%clk 0:02:35]}  Rfe8 {[%clk 0:01:14]} 16. b3 {[%clk 0:02:24]}  Be4 {[%clk 0:01:13]} 17. a4 {[%clk 0:02:05]}  a6 {[%clk 0:01:13]} 18. bxc4 {[%clk 0:01:53]}  bxc4 {[%clk 0:01:03]} 19. Bxe4 {[%clk 0:01:50]}  Nxe4 {[%clk 0:01:02]} 20. a5 {[%clk 0:01:48]}  Rab8 {[%clk 0:01:02]} 21. Rb1 {[%clk 0:01:39]}  Rb5 {[%clk 0:01:02]} 22. Qc2 {[%clk 0:01:30]}  Reb8 {[%clk 0:01:01]} 23. Ba3 {[%clk 0:01:28]}  Rb3 {[%clk 0:00:52]} 24. Rxb3 {[%clk 0:01:22]}  Rxb3 {[%clk 0:00:52]} 25. Rb1 {[%clk 0:01:21]}  Qb5 {[%clk 0:00:34]} 26. Rxb3 {[%clk 0:01:07]}  Qxb3 {[%clk 0:00:35]} 27. Qxb3 {[%clk 0:01:07]}  cxb3 {[%clk 0:00:35]} 28. Kf1 {[%clk 0:01:08]}  Nd2+ {[%clk 0:00:35]} 29. Ke2 {[%clk 0:01:08]}  Nc4 {[%clk 0:00:36]} 30. Bc1 {[%clk 0:01:03]}  b2 {[%clk 0:00:36]} 31. Kd1 {[%clk 0:01:04]}  b1=Q {[%clk 0:00:35]} 0-1


[Site "https://www.chess.com"]

[Event "Titled Tuesday Blitz September 27 Early 2022"]
[White "Arutinian, David"]
[Black "Yang, Ray"]
[WhiteFideId "13601741"]
[BlackFideId "3220281"]
[WhiteElo "2525"]
[BlackElo "1796"]
[Result "1-0"]
[Round "05"]
[TimeControl "180+1"]
[Date "2022.09.27"]
[WhiteClock "0:02:11"]
[BlackClock "0:01:28"]

1. Nf3 {[%clk 0:02:40]}  Nf6 {[%clk 0:02:59]} 2. c4 {[%clk 0:02:40]}  g6 {[%clk 0:02:59]} 3. Nc3 {[%clk 0:02:39]}  Bg7 {[%clk 0:02:59]} 4. e4 {[%clk 0:02:39]}  d6 {[%clk 0:02:59]} 5. d4 {[%clk 0:02:39]}  O-O {[%clk 0:02:59]} 6. Be2 {[%clk 0:02:39]}  Nbd7 {[%clk 0:02:57]} 7. O-O {[%clk 0:02:40]}  e5 {[%clk 0:02:56]} 8. Qc2 {[%clk 0:02:40]}  exd4 {[%clk 0:02:49]} 9. Nxd4 {[%clk 0:02:38]}  a5 {[%clk 0:02:49]} 10. Rd1 {[%clk 0:02:38]}  Nc5 {[%clk 0:02:48]} 11. f3 {[%clk 0:02:36]}  Nfd7 {[%clk 0:02:45]} 12. Be3 {[%clk 0:02:35]}  b6 {[%clk 0:02:39]} 13. Ndb5 {[%clk 0:02:32]}  Ba6 {[%clk 0:02:31]} 14. Qd2 {[%clk 0:02:31]}  Rc8 {[%clk 0:02:20]} 15. Bf1 {[%clk 0:02:30]}  Qe7 {[%clk 0:02:17]} 16. Nd5 {[%clk 0:02:29]}  Qd8 {[%clk 0:02:15]} 17. Na7 {[%clk 0:02:27]}  Ra8 {[%clk 0:02:12]} 18. Nc6 {[%clk 0:02:27]}  Qh4 {[%clk 0:01:57]} 19. Nxc7 {[%clk 0:02:22]}  Rac8 {[%clk 0:01:52]} 20. Bg5 {[%clk 0:02:18]}  Qh5 {[%clk 0:01:44]} 21. Ne7+ {[%clk 0:02:17]}  Kh8 {[%clk 0:01:44]} 22. Nxc8 {[%clk 0:02:17]}  Rxc8 {[%clk 0:01:44]} 23. Nb5 {[%clk 0:02:17]}  Bxb5 {[%clk 0:01:39]} 24. cxb5 {[%clk 0:02:18]}  Ne5 {[%clk 0:01:28]} 25. Bf4 {[%clk 0:02:11]} 1-0


[Site "https://www.chess.com"]

[Event "Titled Tuesday Blitz September 27 Early 2022"]
[White "Azaladze, Shota"]
[Black "Xiong, Jeffery"]
[WhiteFideId "13603027"]
[BlackFideId "2047640"]
[WhiteElo "2439"]
[BlackElo "2714"]
[Result "1-0"]
[Round "05"]
[TimeControl "180+1"]
[Date "2022.09.27"]
[WhiteClock "0:02:30"]
[BlackClock "0:00:37"]

1. Nf3 {[%clk 0:02:58]}  c5 {[%clk 0:00:35]} 2. g3 {[%clk 0:02:57]}  Nc6 {[%clk 0:00:34]} 3. Bg2 {[%clk 0:02:58]}  g6 {[%clk 0:00:35]} 4. O-O {[%clk 0:02:59]}  Bg7 {[%clk 0:00:35]} 5. c3 {[%clk 0:03:00]}  e5 {[%clk 0:00:35]} 6. c4 {[%clk 0:03:00]}  d6 {[%clk 0:00:35]} 7. Nc3 {[%clk 0:03:01]}  Nge7 {[%clk 0:00:36]} 8. Ne1 {[%clk 0:03:01]}  O-O {[%clk 0:00:36]} 9. Nc2 {[%clk 0:03:01]}  Be6 {[%clk 0:00:37]} 10. Ne3 {[%clk 0:03:01]}  Rb8 {[%clk 0:00:37]} 11. Ned5 {[%clk 0:03:00]}  a6 {[%clk 0:00:37]} 12. d3 {[%clk 0:02:59]}  b5 {[%clk 0:00:38]} 13. Rb1 {[%clk 0:02:45]}  Qd7 {[%clk 0:00:38]} 14. b3 {[%clk 0:02:45]}  Bh3 {[%clk 0:00:38]} 15. Ne4 {[%clk 0:02:31]}  Bxg2 {[%clk 0:00:37]} 16. Nef6+ {[%clk 0:02:30]} 1-0


[Site "https://www.chess.com"]

[Event "Titled Tuesday Blitz September 27 Early 2022"]
[White "Balint, Vilmos"]
[Black "Marin Ramirez, Gerardo"]
[WhiteFideId "718050"]
[BlackFideId "3901068"]
[WhiteElo "2076"]
[BlackElo "1920"]
[Result "0-1"]
[Round "05"]
[TimeControl "180+1"]
[Date "2022.09.27"]
[WhiteClock "0:01:57"]
[BlackClock "0:01:12"]

1. e4 {[%clk 0:02:57]}  c5 {[%clk 0:02:58]} 2. Nf3 {[%clk 0:02:55]}  d6 {[%clk 0:02:59]} 3. d4 {[%clk 0:02:55]}  cxd4 {[%clk 0:02:59]} 4. Nxd4 {[%clk 0:02:56]}  Nf6 {[%clk 0:02:58]} 5. Bb5+ {[%clk 0:02:54]}  Bd7 {[%clk 0:02:53]} 6. Bxd7+ {[%clk 0:02:53]}  Nbxd7 {[%clk 0:02:51]} 7. Nc3 {[%clk 0:02:53]}  a6 {[%clk 0:02:45]} 8. O-O {[%clk 0:02:53]}  e6 {[%clk 0:02:34]} 9. f3 {[%clk 0:02:51]}  Be7 {[%clk 0:02:33]} 10. Be3 {[%clk 0:02:51]}  Rc8 {[%clk 0:02:26]} 11. Nce2 {[%clk 0:02:51]}  O-O {[%clk 0:02:18]} 12. a4 {[%clk 0:02:50]}  d5 {[%clk 0:02:07]} 13. exd5 {[%clk 0:02:38]}  Nxd5 {[%clk 0:02:06]} 14. Bf2 {[%clk 0:02:39]}  Bc5 {[%clk 0:01:58]} 15. c4 {[%clk 0:02:27]}  Nb4 {[%clk 0:01:55]} 16. b3 {[%clk 0:02:22]}  Ne5 {[%clk 0:01:51]} 17. Qd2 {[%clk 0:02:13]}  Ned3 {[%clk 0:01:44]} 18. Be3 {[%clk 0:02:09]}  e5 {[%clk 0:01:22]} 19. Nf5 {[%clk 0:02:07]}  Nf4 {[%clk 0:01:21]} 20. Nxf4 {[%clk 0:02:00]}  Qxd2 {[%clk 0:01:16]} 21. Ne7+ {[%clk 0:01:57]}  Kh8 {[%clk 0:01:12]} 0-1


[Site "https://www.chess.com"]

[Event "Titled Tuesday Blitz September 27 Early 2022"]
[White "Barria Zuniga, Daniel"]
[Black "Kravtsiv, Martyn"]
[WhiteFideId "3400816"]
[BlackFideId "14113147"]
[WhiteElo "2653"]
[BlackElo "2815"]
[Result "0-1"]
[Round "05"]
[TimeControl "180+1"]
[Date "2022.09.27"]
[WhiteClock "0:00:03"]
[BlackClock "0:01:00"]

1. d4 {[%clk 0:02:59]}  d5 {[%clk 0:02:32]} 2. c4 {[%clk 0:02:58]}  e6 {[%clk 0:02:32]} 3. Nf3 {[%clk 0:02:58]}  Nf6 {[%clk 0:02:31]} 4. Nc3 {[%clk 0:02:58]}  Nbd7 {[%clk 0:02:31]} 5. c5 {[%clk 0:02:48]}  b6 {[%clk 0:02:28]} 6. c6 {[%clk 0:02:26]}  Nb8 {[%clk 0:02:27]} 7. Qa4 {[%clk 0:02:16]}  Bd6 {[%clk 0:02:19]} 8. Bg5 {[%clk 0:02:11]}  h6 {[%clk 0:02:15]} 9. Bxf6 {[%clk 0:02:08]}  Qxf6 {[%clk 0:02:16]} 10. e4 {[%clk 0:02:08]}  dxe4 {[%clk 0:02:06]} 11. Nxe4 {[%clk 0:02:09]}  Qe7 {[%clk 0:02:06]} 12. Bd3 {[%clk 0:02:04]}  Bb4+ {[%clk 0:02:06]} 13. Ke2 {[%clk 0:02:03]}  f5 {[%clk 0:01:57]} 14. Ned2 {[%clk 0:01:47]}  O-O {[%clk 0:01:53]} 15. Rac1 {[%clk 0:01:47]}  a5 {[%clk 0:01:51]} 16. a3 {[%clk 0:01:40]}  Bd6 {[%clk 0:01:48]} 17. Rhe1 {[%clk 0:01:39]}  Ba6 {[%clk 0:01:38]} 18. Bxa6 {[%clk 0:01:36]}  Nxa6 {[%clk 0:01:39]} 19. Kf1 {[%clk 0:01:36]}  Rae8 {[%clk 0:01:38]} 20. Re2 {[%clk 0:01:29]}  Nb8 {[%clk 0:01:37]} 21. Rce1 {[%clk 0:01:28]}  Bf4 {[%clk 0:01:27]} 22. Rxe6 {[%clk 0:01:20]}  Qf7 {[%clk 0:01:19]} 23. Rxe8 {[%clk 0:00:43]}  Rxe8 {[%clk 0:01:18]} 24. Rxe8+ {[%clk 0:00:44]}  Qxe8 {[%clk 0:01:19]} 25. Qc4+ {[%clk 0:00:44]}  Kh8 {[%clk 0:01:10]} 26. d5 {[%clk 0:00:43]}  Bd6 {[%clk 0:01:10]} 27. Nd4 {[%clk 0:00:39]}  Qe5 {[%clk 0:01:07]} 28. N2f3 {[%clk 0:00:38]}  Qe4 {[%clk 0:01:07]} 29. Qe2 {[%clk 0:00:08]}  Qb1+ {[%clk 0:01:06]} 30. Qe1 {[%clk 0:00:08]}  Qxb2 {[%clk 0:01:06]} 31. Qe8+ {[%clk 0:00:08]}  Kh7 {[%clk 0:01:06]} 32. Qxb8 {[%clk 0:00:07]}  Qa1+ {[%clk 0:01:05]} 33. Ke2 {[%clk 0:00:07]}  Qb2+ {[%clk 0:01:05]} 34. Kd3 {[%clk 0:00:07]}  Qxa3+ {[%clk 0:01:05]} 35. Ke2 {[%clk 0:00:06]}  Qb2+ {[%clk 0:01:05]} 36. Kd3 {[%clk 0:00:06]}  a4 {[%clk 0:01:02]} 37. Qc8 {[%clk 0:00:05]}  Qb1+ {[%clk 0:01:02]} 38. Kc4 {[%clk 0:00:03]}  a3 {[%clk 0:01:00]} 0-1


[Site "https://www.chess.com"]

[Event "Titled Tuesday Blitz September 27 Early 2022"]
[White "Begmuratov, Khumoyun"]
[Black "Ozen, Bahadir"]
[WhiteFideId "14210207"]
[BlackFideId "6337058"]
[WhiteElo "1978"]
[BlackElo "2503"]
[Result "1-0"]
[Round "05"]
[TimeControl "180+1"]
[Date "2022.09.27"]
[WhiteClock "0:00:32"]
[BlackClock "0:00:03"]

1. e4 {[%clk 0:02:58]}  g6 {[%clk 0:01:43]} 2. d4 {[%clk 0:02:56]}  Bg7 {[%clk 0:01:43]} 3. f4 {[%clk 0:02:55]}  d5 {[%clk 0:01:42]} 4. e5 {[%clk 0:02:54]}  Nh6 {[%clk 0:01:41]} 5. Nf3 {[%clk 0:02:53]}  Bg4 {[%clk 0:01:41]} 6. Be2 {[%clk 0:02:49]}  Nf5 {[%clk 0:01:40]} 7. c3 {[%clk 0:02:48]}  c6 {[%clk 0:01:36]} 8. Nbd2 {[%clk 0:02:43]}  Ne3 {[%clk 0:01:34]} 9. Qb3 {[%clk 0:02:41]}  Nxg2+ {[%clk 0:01:34]} 10. Kf2 {[%clk 0:02:40]}  Nxf4 {[%clk 0:01:35]} 11. Qxb7 {[%clk 0:02:39]}  Nd7 {[%clk 0:01:28]} 12. Qxc6 {[%clk 0:02:38]}  Nxe2 {[%clk 0:01:28]} 13. Kxe2 {[%clk 0:02:36]}  O-O {[%clk 0:01:20]} 14. Qxd5 {[%clk 0:02:31]}  Qc7 {[%clk 0:01:13]} 15. Kf2 {[%clk 0:02:24]}  Nb6 {[%clk 0:01:10]} 16. Qe4 {[%clk 0:02:22]}  Bf5 {[%clk 0:01:09]} 17. Qh4 {[%clk 0:02:21]}  f6 {[%clk 0:01:09]} 18. exf6 {[%clk 0:02:13]}  exf6 {[%clk 0:01:09]} 19. Re1 {[%clk 0:02:07]}  Rae8 {[%clk 0:01:09]} 20. Nf1 {[%clk 0:02:04]}  Rxe1 {[%clk 0:01:08]} 21. Nxe1 {[%clk 0:02:05]}  Re8 {[%clk 0:01:08]} 22. Qg3 {[%clk 0:02:01]}  Qd7 {[%clk 0:01:01]} 23. Ne3 {[%clk 0:01:53]}  Nd5 {[%clk 0:01:00]} 24. Nxf5 {[%clk 0:01:43]}  Qxf5+ {[%clk 0:01:00]} 25. Qf3 {[%clk 0:01:43]}  Qe6 {[%clk 0:00:55]} 26. Ng2 {[%clk 0:01:37]}  f5 {[%clk 0:00:38]} 27. Bg5 {[%clk 0:01:29]}  Rb8 {[%clk 0:00:31]} 28. b3 {[%clk 0:01:13]}  Rc8 {[%clk 0:00:28]} 29. Re1 {[%clk 0:01:08]}  Qd7 {[%clk 0:00:28]} 30. c4 {[%clk 0:01:02]}  Bxd4+ {[%clk 0:00:27]} 31. Kf1 {[%clk 0:01:03]}  Nf6 {[%clk 0:00:28]} 32. Rd1 {[%clk 0:00:57]}  Ng4 {[%clk 0:00:28]} 33. Qf4 {[%clk 0:00:43]}  h6 {[%clk 0:00:15]} 34. Rxd4 {[%clk 0:00:42]}  hxg5 {[%clk 0:00:14]} 35. Qxg4 {[%clk 0:00:36]}  Qe7 {[%clk 0:00:07]} 36. Qe2 {[%clk 0:00:35]}  Qf6 {[%clk 0:00:07]} 37. Rd7 {[%clk 0:00:33]}  f4 {[%clk 0:00:03]} 38. Qe7 {[%clk 0:00:31]}  Qa1+ {[%clk 0:00:03]} 39. Ne1 {[%clk 0:00:32]} 1-0


[Site "https://www.chess.com"]

[Event "Titled Tuesday Blitz September 27 Early 2022"]
[White "Brodowski, Piotr"]
[Black "Vovk, Orest"]
[WhiteFideId "1124480"]
[BlackFideId "14113490"]
[WhiteElo "2312"]
[BlackElo "2203"]
[Result "1-0"]
[Round "05"]
[TimeControl "180+1"]
[Date "2022.09.27"]
[WhiteClock "0:01:43"]
[BlackClock "0:01:25"]

1. c4 {[%clk 0:02:59]}  g5 {[%clk 0:02:53]} 2. d4 {[%clk 0:02:58]}  h6 {[%clk 0:02:33]} 3. Nc3 {[%clk 0:02:57]}  Bg7 {[%clk 0:02:31]} 4. e4 {[%clk 0:02:57]}  c5 {[%clk 0:02:29]} 5. Be3 {[%clk 0:02:57]}  cxd4 {[%clk 0:02:29]} 6. Bxd4 {[%clk 0:02:57]}  Bxd4 {[%clk 0:02:23]} 7. Qxd4 {[%clk 0:02:57]}  Nf6 {[%clk 0:02:23]} 8. e5 {[%clk 0:02:57]}  Nc6 {[%clk 0:02:23]} 9. Qe3 {[%clk 0:02:38]}  Ng4 {[%clk 0:02:22]} 10. Qe4 {[%clk 0:02:35]}  Ngxe5 {[%clk 0:02:19]} 11. O-O-O {[%clk 0:02:35]}  Qa5 {[%clk 0:02:18]} 12. Rd5 {[%clk 0:02:27]}  Qb6 {[%clk 0:02:09]} 13. Rxe5 {[%clk 0:02:17]}  Qxf2 {[%clk 0:02:08]} 14. Rf5 {[%clk 0:02:15]}  Qb6 {[%clk 0:02:00]} 15. Nd5 {[%clk 0:02:08]}  Qd8 {[%clk 0:02:00]} 16. Be2 {[%clk 0:01:58]}  d6 {[%clk 0:01:59]} 17. Rxf7 {[%clk 0:01:54]}  Qa5 {[%clk 0:01:40]} 18. Rxe7+ {[%clk 0:01:52]}  Kd8 {[%clk 0:01:39]} 19. Bh5 {[%clk 0:01:46]}  Bd7 {[%clk 0:01:29]} 20. Rxd7+ {[%clk 0:01:43]}  Kxd7 {[%clk 0:01:28]} 21. Qf5+ {[%clk 0:01:42]}  Kd8 {[%clk 0:01:25]} 22. Qf6+ {[%clk 0:01:43]}  Kd7 {[%clk 0:01:25]} 23. Bg4+ {[%clk 0:01:43]} 1-0


[Site "https://www.chess.com"]

[Event "Titled Tuesday Blitz September 27 Early 2022"]
[White "Bykov, Egor"]
[Black "Svane, Frederik"]
[WhiteFideId "34115290"]
[BlackFideId "12923044"]
[WhiteElo "2653"]
[BlackElo "2825"]
[Result "0-1"]
[Round "05"]
[TimeControl "180+1"]
[Date "2022.09.27"]
[WhiteClock "0:01:34"]
[BlackClock "0:02:26"]

1. d4 {[%clk 0:02:58]}  Nf6 {[%clk 0:02:59]} 2. c4 {[%clk 0:02:57]}  e6 {[%clk 0:02:59]} 3. Nf3 {[%clk 0:02:56]}  b6 {[%clk 0:02:58]} 4. g3 {[%clk 0:02:55]}  Bb4+ {[%clk 0:02:58]} 5. Bd2 {[%clk 0:02:55]}  Be7 {[%clk 0:02:58]} 6. Bg2 {[%clk 0:02:55]}  c6 {[%clk 0:02:58]} 7. O-O {[%clk 0:02:46]}  d5 {[%clk 0:02:58]} 8. b3 {[%clk 0:02:44]}  O-O {[%clk 0:02:57]} 9. Bc3 {[%clk 0:02:43]}  Nbd7 {[%clk 0:02:54]} 10. Nbd2 {[%clk 0:02:43]}  Bb7 {[%clk 0:02:54]} 11. a4 {[%clk 0:02:30]}  a5 {[%clk 0:02:53]} 12. Ne5 {[%clk 0:02:23]}  Rc8 {[%clk 0:02:45]} 13. Nxd7 {[%clk 0:02:13]}  Qxd7 {[%clk 0:02:40]} 14. e4 {[%clk 0:02:14]}  c5 {[%clk 0:02:39]} 15. dxc5 {[%clk 0:02:07]}  d4 {[%clk 0:02:36]} 16. Nf3 {[%clk 0:01:43]}  dxc3 {[%clk 0:02:33]} 17. Qc2 {[%clk 0:01:36]}  Bxe4 {[%clk 0:02:26]} 18. Qxc3 {[%clk 0:01:34]}  Bxc5 {[%clk 0:02:26]} 0-1


[Site "https://www.chess.com"]

[Event "Titled Tuesday Blitz September 27 Early 2022"]
[White "Caruana, Fabiano"]
[Black "Pultinevicius, Paulius"]
[WhiteFideId "2020009"]
[BlackFideId "12809390"]
[WhiteElo "2847"]
[BlackElo "2472"]
[Result "0-1"]
[Round "05"]
[TimeControl "180+1"]
[Date "2022.09.27"]
[WhiteClock "0:00:04"]
[BlackClock "0:00:34"]

1. e3 {[%clk 0:02:28]}  d5 {[%clk 0:02:53]} 2. Nf3 {[%clk 0:02:27]}  Nf6 {[%clk 0:02:52]} 3. b3 {[%clk 0:02:27]}  Bf5 {[%clk 0:02:50]} 4. Bb2 {[%clk 0:02:28]}  e6 {[%clk 0:02:50]} 5. d3 {[%clk 0:02:28]}  Nbd7 {[%clk 0:02:50]} 6. Nbd2 {[%clk 0:02:29]}  h6 {[%clk 0:02:50]} 7. g3 {[%clk 0:02:29]}  Bh7 {[%clk 0:02:50]} 8. Bg2 {[%clk 0:02:30]}  c6 {[%clk 0:02:50]} 9. O-O {[%clk 0:02:30]}  Bd6 {[%clk 0:02:51]} 10. Qe2 {[%clk 0:02:30]}  O-O {[%clk 0:02:50]} 11. e4 {[%clk 0:02:31]}  e5 {[%clk 0:02:49]} 12. Nh4 {[%clk 0:02:30]}  Re8 {[%clk 0:02:48]} 13. a4 {[%clk 0:02:26]}  a5 {[%clk 0:02:40]} 14. Rfd1 {[%clk 0:02:24]}  Qc7 {[%clk 0:02:39]} 15. Nf1 {[%clk 0:02:24]}  dxe4 {[%clk 0:02:32]} 16. dxe4 {[%clk 0:02:24]}  Nc5 {[%clk 0:02:33]} 17. Nf5 {[%clk 0:02:22]}  Bf8 {[%clk 0:02:31]} 18. Qc4 {[%clk 0:01:58]}  Rad8 {[%clk 0:02:05]} 19. N1e3 {[%clk 0:01:58]}  Ne6 {[%clk 0:02:05]} 20. h4 {[%clk 0:01:51]}  Bc5 {[%clk 0:02:03]} 21. Bc3 {[%clk 0:01:33]}  b6 {[%clk 0:01:44]} 22. b4 {[%clk 0:01:25]}  axb4 {[%clk 0:01:42]} 23. Bxb4 {[%clk 0:01:26]}  Bxe3 {[%clk 0:01:15]} 24. fxe3 {[%clk 0:01:19]}  c5 {[%clk 0:01:11]} 25. Bc3 {[%clk 0:01:17]}  Ng4 {[%clk 0:01:09]} 26. Qe2 {[%clk 0:01:14]}  h5 {[%clk 0:01:08]} 27. Bf3 {[%clk 0:01:14]}  Bxf5 {[%clk 0:00:58]} 28. exf5 {[%clk 0:01:13]}  Nd4 {[%clk 0:00:58]} 29. exd4 {[%clk 0:00:41]}  exd4 {[%clk 0:00:59]} 30. Qg2 {[%clk 0:00:32]}  Ne3 {[%clk 0:00:58]} 31. Qf2 {[%clk 0:00:19]}  Nxd1 {[%clk 0:00:57]} 32. Bxd1 {[%clk 0:00:19]}  dxc3 {[%clk 0:00:57]} 33. Bxh5 {[%clk 0:00:20]}  Rd2 {[%clk 0:00:54]} 34. Qf3 {[%clk 0:00:20]}  Ree2 {[%clk 0:00:55]} 35. Rf1 {[%clk 0:00:14]}  Rxc2 {[%clk 0:00:49]} 36. f6 {[%clk 0:00:14]}  Rg2+ {[%clk 0:00:48]} 37. Qxg2 {[%clk 0:00:15]}  Rxg2+ {[%clk 0:00:49]} 38. Kxg2 {[%clk 0:00:15]}  Qc6+ {[%clk 0:00:47]} 39. Bf3 {[%clk 0:00:10]}  Qxf6 {[%clk 0:00:47]} 40. Rf2 {[%clk 0:00:10]}  Qd4 {[%clk 0:00:47]} 41. Re2 {[%clk 0:00:09]}  Qxa4 {[%clk 0:00:38]} 42. Be4 {[%clk 0:00:09]}  g6 {[%clk 0:00:34]} 43. Bc2 {[%clk 0:00:09]}  Qc6+ {[%clk 0:00:34]} 44. Kf2 {[%clk 0:00:09]}  b5 {[%clk 0:00:34]} 45. g4 {[%clk 0:00:08]}  c4 {[%clk 0:00:35]} 46. h5 {[%clk 0:00:08]}  gxh5 {[%clk 0:00:34]} 47. gxh5 {[%clk 0:00:09]}  Qc5+ {[%clk 0:00:34]} 48. Kg3 {[%clk 0:00:08]}  Qg5+ {[%clk 0:00:34]} 49. Kf2 {[%clk 0:00:06]}  Qxh5 {[%clk 0:00:35]} 50. Ke3 {[%clk 0:00:05]}  Qe5+ {[%clk 0:00:35]} 51. Kf3 {[%clk 0:00:05]}  Qd5+ {[%clk 0:00:35]} 52. Be4 {[%clk 0:00:04]}  Qd4 {[%clk 0:00:34]} 53. Rg2+ {[%clk 0:00:04]}  Kf8 {[%clk 0:00:34]} 54. Rh2 {[%clk 0:00:05]}  b4 {[%clk 0:00:34]} 55. Re2 {[%clk 0:00:04]}  b3 {[%clk 0:00:34]} 0-1


[Site "https://www.chess.com"]